Cogmind - Beta 13 @@@ ROGUE MODE // 2024.04.04 @ 20:40:17 Player: ryptix Result: Destroyed by G-34 Mercenary with Small Laser Performance ------------- Evolutions (0) 0 Regions Visited (1) 200 Robots Destroyed (17) 85 Value Destroyed (296) 296 Prototype IDs (0) 0 Alien Tech Used (0) 0 Bonus (0) 0 TOTAL SCORE: 581 Bonus ------- None Cogmind --------- Core Integrity 0/250 Matter 249/300 Energy 0/100 System Corruption 0% Temperature Cool (6) Movement Treading (160) Location -10/Materials Parts ------- > --- POWER (1) -------- (None) > --- PROPULSION (2) --- Light Treads Light Treads > --- UTILITY (2) ------ Medium Storage Unit ECM Suite > --- WEAPON (2) ------- Light Assault Rifle Hammer > --- INVENTORY (10) --- Ion Engine Ion Engine Aluminum Leg Sensor Array Signal Interpreter Medium Laser Light Cannon Peak State ------------ > --- POWER ------------ Light Ion Engine > --- PROPULSION ------- Aluminum Leg Aluminum Leg > --- UTILITY ---------- Small Storage Unit Medium Storage Unit > --- WEAPON ----------- Medium Laser Grenade Launcher > --- INVENTORY -------- Ion Engine Light Treads Light Treads Medium Laser Small Laser Hammer [Rating: 7] Favorites ----------- Power Ion Engine Engine Ion Engine Propulsion Aluminum Leg Treads Light Treads Leg Aluminum Leg Utility Medium Storage Unit Device Sensor Array Storage Medium Storage Unit Weapon Medium Laser Energy Gun Medium Laser Ballistic Gun Light Assault Rifle Ballistic Cannon Light Cannon Launcher Grenade Launcher Build | -11 -10 ------- Run | Yrd Mat Slots Evolved . | . . Power . | . . Propulsion . | . . Utility . | . . Weapon . | . . Parts Attached 21 | 7 14 Power 2 | 1 1 Engine 2 | 1 1 Core . | . . Reactor . | . . Propulsion 7 | 4 3 Treads 4 | 2 2 Leg 3 | 2 1 Wheel . | . . Hover . | . . Flight . | . . Utility 5 | 1 4 Device 3 | . 3 Storage 2 | 1 1 Processor . | . . Hackware . | . . Protection . | . . Artifact . | . . Weapon 7 | 1 6 Energy Gun 3 | 1 2 Energy Cannon . | . . Ballistic Gun 1 | . 1 Ballistic Cannon 1 | . 1 Launcher 1 | . 1 Special Weapon . | . . Impact Weapon 1 | . 1 Slashing Weapon . | . . Piercing Weapon . | . . Special Melee Weapon . | . . Unidentified Prototypes . | . . Parts Lost 2 | . 2 Power 1 | . 1 Propulsion 1 | . 1 Utility . | . . Weapon . | . . Highest Loss Streak 2 | . 2 To Critical Strikes . | . . Average Slot Usage (%) 80 | . 80 Engine 13 | . 13 Leg 17 | . 17 Device 7 | . 7 Storage 14 | . 14 Energy Gun 14 | . 14 Ballistic Gun 9 | . 9 Ballistic Cannon 1 | . 1 Launcher 2 | . 2 Naked Turns . | . . Heaviest Build 20 | 10 20 Greatest Support 40 | 40 20 Greatest Overweight (x) 4 | . 4 Average Overweight (x) . | . . Largest Inventory Capacity 10 | 8 10 Average Capacity 9 | 7 9 Most Carried 10 | 5 10 Average Carried 5 | 3 5 Final Capacity 10 | 8 10 Final Carried 7 | 5 7 Class Distribution -------------------- 100% | Mutant Dominant Class ---------------- Mutant | -10/Materials Resources | -11 -10 ----------- Run | Yrd Mat Matter Collected 464 | 235 229 Remotely . | . . Salvage Created 385 | . 385 Parts 27 | . 27 Haulers Intercepted . | . . Recyclers Shooed . | . . Parts Field Recycled . | . . Retrieved Matter . | . . Parts Self-Destructed . | . . Prevented . | . . Kills | -11 -10 ------- Run | Yrd Mat Combat Hostiles Destroyed 11 | . 11 Guns 7 | . 7 Cannons 1 | . 1 AOE 3 | . 3 Classes Destroyed 5 | . 5 Builder 3 | . 3 Recycler 2 | . 2 Watcher 1 | . 1 Swarmer 6 | . 6 Grunt 5 | . 5 Best Kill Streak 8 | . 8 Combat Bots Only 7 | . 7 Max Kills in Single Turn 3 | . 3 Gunslinging . | . . Exploded 1 | . 1 Melee . | . . Uniques/NPCs Destroyed . | . . Combat | -11 -10 -------- Run | Yrd Mat Hostile Shots Fired 74 | . 74 Missed 21 | . 21 Damage Taken 633 | . 633 Core 253 | . 253 Absorbed by Shields . | . . Regen/Repaired (Parts) 31 | . 31 Core Remaining (%) 100 | 100 . Volleys Fired 31 | . 31 Largest 2 | . 2 Hottest 100 | . 100 Shots Fired 59 | . 59 Gun 40 | . 40 Cannon 9 | . 9 Launcher 10 | . 10 Special . | . . Kinetic 12 | . 12 Thermal 37 | . 37 Explosive 10 | . 10 Electromagnetic . | . . Robot Hit Streak 5 | . 5 Robot Miss Streak 2 | . 2 Penetration Max . | . . Secondary Targets . | . . Shots Hit Robots 28 | . 28 Core Hits 27 | . 27 Critical Kills . | . . Critical Parts Destroyed . | . . Critical Strikes 2 | . 2 Burn 2 | . 2 Melee Attacks . | . . Impact . | . . Slashing . | . . Piercing . | . . Sneak Attacks . | . . Combat Hostiles . | . . Follow-up Attacks . | . . Damage Inflicted 963 | . 963 Guns 203 | . 203 Cannons 84 | . 84 Explosions 676 | . 676 Melee . | . . Ramming . | . . Kinetic 90 | . 90 Thermal 197 | . 197 Explosive 676 | . 676 Electromagnetic . | . . Impact . | . . Slashing . | . . Piercing . | . . Highest Corruption . | . . Average Corruption . | . . Corruption Purged . | . . Corruption Blocked . | . . Overload Shots . | . . Overflow Damage 12 | . 12 Projectiles . | . . Explosions 12 | . 12 Melee . | . . Knockbacks 1 | . 1 Impact . | . . Kinetic 1 | . 1 Secondary . | . . Self-Inflicted Damage 107 | . 107 Shots 6 | . 6 Rammed . | . . Targets Rammed . | . . Kicked . | . . Crushed . | . . Highest Temperature 167 | . 167 Average Temperature 59 | . 59 Received Heat Transfer 93 | . 93 Siege Activations . | . . Robots Corrupted . | . . Combat Hostiles . | . . Parts Fried . | . . Impact Corruptions . | . . Robots Melted . | . . Combat Hostiles . | . . Parts Melted 2 | . 2 Heat Transferred 740 | . 740 Parts Sabotaged . | . . Parts Stolen . | . . Parts Stripped . | . . Power Chain Reactions . | . . Alert | -11 -10 ------- Run | Yrd Mat Peak Influence 361 | . 361 Initial . | . . Average 168 | . 186 Maximum Alert Level 1 | . 1 Low Security (%) 63 | 100 59 Level 1 36 | . 40 Level 2 . | . . Level 3 . | . . Level 4 . | . . Level 5 . | . . High Security . | . . Max Security . | . . Squads Dispatched 3 | . 3 Investigation 2 | . 2 Extermination . | . . Reinforcement 1 | . 1 Assault . | . . Garrison . | . . Intercept . | . . Searches Triggered . | . . Construction Impeded . | . . Haulers Reinforced . | . . Active Scanning Responses . | . . Cargo Convoy Interrupts . | . . Stealth | -11 -10 --------- Run | Yrd Mat Distress Signals . | . . Communications Jammed . | . . Distress Signals . | . . Times Spotted 20 | . 20 Peak Tracking Total 6 | . 6 Tactical Retreats . | . . Traps | -11 -10 ------- Run | Yrd Mat Traps Triggered 2 | . 2 Indirectly . | . . Trap Hack Attempts . | . . Triggered . | . . Disarmed . | . . Reprogrammed . | . . Reused . | . . Traps Extracted . | . . Installed . | . . Triggered . | . . Machines | -11 -10 ---------- Run | Yrd Mat Machines Disabled 1 | . 1 Max in Single Turn 1 | . 1 Machines Repaired . | . . Machines Dismantled . | . . Machines Sabotaged . | . . Overloaded Fab Kills . | . . Hacking | -11 -10 --------- Run | Yrd Mat Machines Accessed 7 | . 7 Terminals 4 | . 4 Fabricators . | . . Repair Stations 1 | . 1 Recycling Units 2 | . 2 Scanalyzers . | . . Garrison Access . | . . Total Hacks 33 | . 33 Successful 24 | . 24 Failed 9 | . 9 Catastrophic 2 | . 2 Database Lockouts . | . . Manual . | . . Terminals 11 | . 11 Fabricators . | . . Repair Stations 9 | . 9 Recycling Units 13 | . 13 Scanalyzers . | . . Garrison Access . | . . Terminal Hacks 6 | . 6 Record 1 | . 1 Robot Analysis 1 | . 1 Alert Level 3 | . 3 Investigation Status 1 | . 1 Fabricator Hacks . | . . Repair Station Hacks 8 | . 8 Scan Component 4 | . 4 Repair 4 | . 4 Recycling Unit Hacks 10 | . 10 Recycle Component 2 | . 2 Process 3 | . 3 Report Inventory 1 | . 1 Retrieve Matter 3 | . 3 Retrieve Components 1 | . 1 Scanalyzer . | . . Garrison Access Hacks . | . . Unauthorized Hacks . | . . Terminals . | . . Fabricators . | . . Repair Stations . | . . Recycling Units . | . . Scanalyzers . | . . Garrison Access . | . . Data Cores Recovered . | . . Used . | . . Hacking Detections 5 | . 5 Full Trace Events 2 | . 2 Feedback Events . | . . Feedback Blocked . | . . Robot Schematics Acquired . | . . Robots Built . | . . Authchips . | . . Time . | . . Total Robot Build Rating . | . . Part Schematics Acquired . | . . Parts Built . | . . Authchips . | . . Time . | . . Total Part Build Rating . | . . Parts Repaired 4 | . 4 Time 104 | . 104 Parts Recycled 2 | . 2 Recycled Matter 169 | . 169 Retrieved Matter 169 | . 169 Retrieved Components . | . . Parts Scanalyzed . | . . Part Schematics Acquired . | . . Parts Damaged . | . . Bothacking | -11 -10 ------------ Run | Yrd Mat Used RIF Installer . | . . Robots Hacked . | . . Non-combat . | . . Combat . | . . Robot Hacks Applied . | . . Relay Couplers Released . | . . Fabnet Peak Effective % . | . . Robots Rewired . | . . Allies Hacked . | . . Hacks Repelled . | . . Allies | -11 -10 -------- Run | Yrd Mat Total Allies . | . . Largest Group . | . . Highest-Rated Group . | . . Highest-Rated Ally . | . . Total Orders . | . . Ally Attacks . | . . Total Damage . | . . Kills . | . . Allies Corrupted . | . . Allies Melted . | . . Intel | -11 -10 ------- Run | Yrd Mat Robot Analysis Total 1 | . 1 Derelict Logs Recovered . | . . Drone Launches . | . . Drone Recoveries . | . . Exploration | -11 -10 ------------- Run | Yrd Mat Turns Passed 904 | 86 818 Spaces Moved 464 | 56 408 Core 15 | 7 8 Treads 16 | 16 . Legs 433 | 33 400 Wheels . | . . Hover . | . . Flight . | . . Fastest Speed 50 | 50 120 Average Speed 160 | 122 165 Slowest Speed 250 | 160 250 Overloaded Moves . | . . Propulsion Burnouts . | . . Robots Hopped . | . . Cave-ins Triggered . | . . Exploration Rate (%) 35 | 4 67 Regions Visited 1 Branch Regions . Pre-discovered Areas . | . . Known Exits Taken . | . . Unknown Exits Taken 1 | 1 . Scrap Searched . | . . Spaces Dug . | . . Terrain Destroyed 59 | . 59 Melee . | . . Projectile . | . . AOE 59 | . 59 Terrain Rammed . | . . Walls Destroyed . | . . Machines Disabled . | . . Actions | -11 -10 --------- Run | Yrd Mat Total 564 | 72 492 Wait 20 | . 20 Move 463 | 55 408 Hop . | . . Pick Up 24 | 10 14 Fast Attach . | . . Attach 13 | 5 8 Detach 2 | . 2 Swap 8 | 2 6 Drop 3 | . 3 Fire 31 | . 31 Melee . | . . Ram . | . . Kick . | . . Crush . | . . Escape Stasis . | . . Rewire . | . . Trap . | . . Miscellaneous . | . . Route ------- -11/Scrapyard -10/Materials (discovered 2 exits: [*Mat x2]) History --------- Turn | Location | Event 31 | -11/Scrapyard | Discovered new exit (range 14) 87 | -11/Scrapyard | Entered Materials 304 | -10/Materials | Discovered new exit (range 10) 315 | -10/Materials | Build established: Mutant 328 | -10/Materials | Core integrity fell below 50% 365 | -10/Materials | Core integrity fell below 20% 385 | -10/Materials | Discovered new exit (range 11) 388 | -10/Materials | Destroyed 7 combat bots 858 | -10/Materials | Repaired Ion Engine 858 | -10/Materials | Repaired Aluminum Leg 858 | -10/Materials | Repaired Med. Laser 884 | -10/Materials | Repaired Lgt. Cannon 905 | -10/Materials | Destroyed by G-34 Mercenary with Small Laser Last Messages --------------- Repairing Med. Laser... ETC: 26 >>Scan(Lgt. Cannon) Scanning Lgt. Cannon... Ready to Repair: Lgt. Cannon Rating: 1 Time: 26 Repair station completes Med. Laser repairs. >>Repair Cancelling repair: Med. Laser. Repairing Lgt. Cannon... ETC: 26 ALERT: Suspicious activity at Repair Station M001. Dispatching Investigation squad. Acquired Ion Engine. Acquired Aluminum Leg. Repair station completes Lgt. Cannon repairs. Acquired Lgt. Cannon. Acquired Med. Laser. Map ----- +----------------------------------------------------+ | | | | | | | | | | | | | | | | | | | | | | | ???????????????????????????????????????????? | | ???????????????????????????????????????????? | | ???????????????????????????????????????????? | | ???????????????????????????????????????????? | | ???????????????????????????????????????????? | | ???????????????????????????????????????????? | | ???????????????????????????????????????????? | | ???????????????????????????????????????????? | | ?????????????????########?????????????? ?? | | ??????????#??????# #?????????????# ?? | | ??????????? ?????#""" #?????????????# ?? | | ???????????? ????#"R #?????????????# ?? | | ????????????? ???#""" ! #?###########?# ## | | ?????????????# ??# #?# #?# # | | ?????????????# ?# @ #?# """"""" #?# # | | ?????????????+ ##g######## """"""" #?# # | | ?????????????# # """"""" #?# #% | | ?????????????# + """"""" #?# # | | ?????????????# ###/##### # """"""" #?# # | | ?????????????#?# ## # #?# #= | | ???????????????# """" ## # #?# # | | ???????????????# """" ## ###########?# ## | | ??????????+????# """" ## ############# ## | | ?????????# ????# ## | | ???????### ###?# ## | | ???????# #?######### """" """" """ | | ???????# #?????????# """" """" """ | | ???????+ #?????????# """" """" """ | | ???????# ??????????# | | ???????? ??????????# | | ????????# #??????????# ###T######## | | ????????# #??????????+ #?###??????# | | ????????# #??????????# #??????????# | | ????????+ #??????????# ##?????????# | | ????????# ######+##??# # ?????#???# % | | ????????# #### # ? #???# | | ????##### # """ #???# % | | ????# # """ #???# ## | | ????# ##### "" + """ ?????# %## | +----------------------------------------------------+ Best States ------------- Heat Dissipation 25 Energy Generation 10 Energy Capacity 250 Matter Stores 300 Matter Capacity 300 Sight Range 16 Robot Scan Range 14 Terrain Scan Density 10 ECM Strength 1 Evasion (%) 55 Recoil Reduction 2 Item Schematics ----------------- None Robot Schematics ------------------ None Fabricated ------------ Nothing Alien Tech Used ----------------- None Achievements -------------- None Challenges ------------ None Game ------ Seed LinkedCargoProjector Manual? 0 Play Time 00:12:48 Cumulative 2.3 hours Start 2024.04.04 @ 20:21:38 End 2024.04.04 @ 20:40:17 Sessions 1 Manual Loads 0 Difficulty Rogue Special Mode None Game No. 4 Rogue 1 Adventurer 3 Explorer 0 Win Type - Total 0 Types 0/0/0/0/0/0/0/0/0 Lore% 9 Gallery% 7 Achievement% 9 Wizard Run 0 Options --------- Layout 1 ASCII 0 Keyboard 0 Movement Mouse Keybinds 0 Fullscreen 1 Font 24/Smallcaps Map View 50x35 Zoom Use 0% Tactical HUD 0 Map Filters NONE Filters NONE Steam 1 RUN: d7507b5d-4d61-4f6f-9687-b833c2e5b54a